bitfinex-derivatives/quotes_SOLF0:USTF0_20251210
["timestamp","ask_amount","ask_price","bid_price","bid_amount"]
[1765329033004,6.555,137.29,137.27,0.04749893]
[1765329033203,2.59289786,137.28,137.27,0.04749893]
[1765329033617,9.14829786,137.28,137.27,0.04749893]
[1765329033818,9.14829786,137.28,137.24,3.34]
[1765329033819,2.59289786,137.28,137.24,3.34]
[1765329034415,104.57019786,137.28,137.19,3.34]
[1765329034712,104.57019786,137.28,137.22,0.04854824]
[1765329034913,6.5578,137.23,137.22,0.04854824]
[1765329035217,0.0491639,137.25,137.22,3.38854824]
[1765329035624,6.6059639,137.25,137.22,3.38854824]
[1765329036317,6.5574,137.24,137.22,3.38854824]
[1765329042021,0.0491639,137.25,137.22,3.38854824]
[1765329044221,6.6059639,137.25,137.22,3.38854824]
[1765329049529,0.0491639,137.25,137.22,3.38854824]
[1765329055130,0.0491639,137.25,137.22,9.94674824]
[1765329055430,0.0491639,137.25,137.23,3.34]
[1765329056626,0.0491639,137.25,137.22,0.04854824]
[1765329056834,0.0491639,137.25,137.22,3.38854824]
[1765329061527,6.5554,137.29,137.22,3.38854824]
[1765329062533,0.05271425,137.27,137.24,3.12]
[1765329062728,0.05271425,137.27,137.24,3.16903744]
[1765329063930,61.94,137.34,137.24,3.16903744]
[1765329063931,6.5542,137.31,137.26,3.12]
[1765329064736,6.5545,137.3,137.26,3.12]
[1765329064937,0.04754604,137.29,137.27,3.16811461]
[1765329065138,0.04754604,137.29,137.27,3.17196565]
[1765329074642,6.5533,137.33,137.28,3.05]
[1765329075650,6.5533,137.33,137.29,0.05194866]
[1765329075848,0.05572328,137.32,137.3,3.05]
[1765329079151,6.5516,137.36,137.31,3.05]
[1765329079358,101.9011,137.38,137.31,3.05]
[1765329079655,101.9215,137.35,137.24,3.05]
[1765329079851,4.05315189,137.33,137.25,3.05]
[1765329080042,0.04814329,137.3,137.28,3.09950765]
[1765329080667,4.05315189,137.36,137.28,3.09950765]
[1765329081764,0.05013221,137.33,137.28,3.09950765]
[1765329082553,0.05013221,137.33,137.3,3.05]
[1765329083057,0.05013221,137.33,137.32,3.05]
[1765329084756,101.8728,137.42,137.32,3.05]
[1765329085653,4.05315189,137.43,137.33,3.05]
[1765329085958,0.05463364,137.38,137.37,3.05]
[1765329086260,0.0523299,137.39,137.37,3.05]
[1765329086452,0.05370486,137.39,137.37,3.10466085]
[1765329087746,0.05370486,137.39,137.37,24.63999039]
[1765329087949,0.05370486,137.39,137.38,3.05]
[1765329089956,6.5484,137.43,137.38,3.05]
[1765329090453,6.5476,137.45,137.38,3.05]
[1765329090866,101.8284,137.48,137.38,3.05]
[1765329091164,0.0490243,137.44,137.42,3.39032753]
[1765329096265,6.5453,137.5,137.43,3.34]
[1765329097059,101.7982,137.52,137.43,3.34]
[1765329097060,6.5456,137.49,137.43,3.34]
[1765329097260,0.05404735,137.47,137.46,3.34]
[1765329100668,0.05404735,137.47,137.45,0.05459408]
[1765329101861,6.5468,137.46,137.45,0.05459408]
[1765329103668,1.46,137.46,137.39,3.34]
[1765329103873,101.8357,137.47,137.39,3.34]
[1765329104071,101.8402,137.46,137.39,3.34]
[1765329104256,4.05315189,137.45,137.39,3.34]
[1765329104566,0.05255396,137.43,137.41,0.05099486]
[1765329104971,0.05255396,137.43,137.41,3.39099486]
[1765329105465,6.60095396,137.43,137.41,3.39099486]
[1765329105967,0.05255396,137.43,137.41,3.39099486]
[1765329108073,6.5462,137.48,137.41,3.39099486]
[1765329108372,6.5464,137.47,137.41,3.39099486]
[1765329108572,6.5464,137.47,137.41,3.34]
[1765329109071,6.5464,137.47,137.44,3.34]
[1765329109072,0.04978929,137.45,137.44,3.34]
[1765329109265,65.91315189,137.53,137.44,3.34]
[1765329109470,101.8033,137.51,137.44,3.34]
[1765329110274,0.04636131,137.49,137.46,3.38897956]
[1765329110573,0.0510575,137.49,137.46,3.39139019]
[1765329110762,6.5459,137.48,137.46,0.05139019]
[1765329111163,6.5459,137.48,137.46,3.39139019]
[1765329114075,6.5459,137.48,137.46,0.05139019]
[1765329114275,6.5459,137.48,137.46,3.39139019]
[1765329117081,2.585553,137.47,137.46,0.05139019]
[1765329117378,101.8844,137.4,137.34,3.34]
[1765329117579,2.585553,137.39,137.34,3.34]
[1765329118177,0.05439416,137.38,137.36,3.34]
[1765329121882,0.05439416,137.38,137.36,5.925553]
[1765329122085,0.05439416,137.38,137.35,3.21357477]
[1765329123577,2.63994716,137.38,137.35,3.21357477]
[1765329124083,6.5514,137.37,137.35,3.21357477]
[1765329125380,0.05439416,137.38,137.35,3.21357477]
[1765329128180,101.8629,137.43,137.35,3.21357477]
[1765329128483,101.8592,137.44,137.35,3.21357477]
[1765329128683,6.5502,137.39,137.35,3.16]
[1765329129286,0.04977843,137.38,137.37,3.16]
[1765329137200,2.585553,137.4,137.37,3.16]
[1765329137697,6.5502,137.39,137.37,3.16]
[1765329137899,2.585553,137.38,137.36,3.38194956]
[1765329138099,2.63178606,137.38,137.36,3.38194956]
[1765329139599,9.18258606,137.38,137.36,3.38194956]
[1765329143791,101.914,137.36,137.29,3.33]
[1765329143987,2.585553,137.35,137.29,3.33]
[1765329144905,6.60306851,137.33,137.31,3.37680173]
[1765329146593,0.04986851,137.33,137.31,3.37680173]
[1765329147297,101.8966,137.39,137.31,3.37680173]
[1765329147502,104.482153,137.39,137.31,3.33]
[1765329148406,104.482153,137.39,137.35,3.33]
[1765329148407,0.05046732,137.36,137.35,3.33]
[1765329148592,0.05046732,137.36,137.34,0.05205228]
[1765329148991,9.137553,137.35,137.34,0.05205228]
[1765329149194,104.508553,137.35,137.28,3.33]
[1765329149395,2.585553,137.33,137.28,3.33]
[1765329149695,2.585553,137.31,137.28,3.33]
[1765329149903,104.554753,137.29,137.22,3.34]
[1765329150107,2.63469647,137.27,137.24,0.04657053]
[1765329150603,0.04914347,137.27,137.25,3.34]
[1765329151200,2.63469647,137.27,137.24,0.04657053]
[1765329152605,2.585553,137.25,137.24,0.04657053]
[1765329158811,2.585553,137.26,137.24,3.38657053]
[1765329159809,2.63469647,137.27,137.24,3.38657053]
[1765329160911,0.04914347,137.27,137.24,3.38657053]
[1765329164005,0.04914347,137.27,137.24,9.94377053]
[1765329164205,0.04914347,137.27,137.25,3.34]
[1765329175925,6.5542,137.31,137.25,3.34]
[1765329177024,0.05219103,137.29,137.25,3.34]
[1765329179343,0.05219103,137.29,137.27,3.29]
[1765329179834,0.05219103,137.29,137.28,3.29]
[1765329182137,0.05219103,137.29,137.27,3.33946971]
[1765329185743,101.9096,137.37,137.28,3.29]
[1765329185934,101.9139,137.36,137.28,3.29]
[1765329186440,101.9224,137.35,137.28,3.29]
[1765329186739,101.9363,137.33,137.3,0.04696869]
[1765329186937,6.5539,137.31,137.3,0.04696869]
[1765329193248,101.9291,137.34,137.3,3.07696869]
[1765329193447,4.05255146,137.32,137.3,0.04696869]
[1765329194534,10.60605146,137.32,137.3,0.04696869]
[1765329197542,6.5539,137.31,137.3,0.04696869]
[1765329199047,6.556,137.27,137.24,3.03]
[1765329199850,101.9527,137.31,137.24,3.03]
[1765329200050,0.05292904,137.29,137.26,3.079163]
[1765329200451,6.5558,137.27,137.26,0.049163]
[1765329202856,6.5558,137.27,137.21,3.03]
[1765329202857,6.5571,137.25,137.21,3.03]
[1765329203951,0.04901177,137.24,137.23,3.03]
[1765329207558,358.65593449,137.36,137.26,3.03]
[1765329208459,0.05534499,137.32,137.3,0.05339134]
[1765329209263,0.05534499,137.32,137.3,3.37339134]
[1765329212266,101.877,137.41,137.3,3.37339134]
[1765329212470,101.877,137.41,137.3,3.32]
[1765329212671,163.7915,137.42,137.3,3.32]
[1765329212970,6.55,137.4,137.32,3.32]
[1765329213172,6.55,137.4,137.35,0.05125793]
[1765329213759,6.5503,137.39,137.35,0.05125793]
[1765329214277,6.5512,137.37,137.35,0.05125793]
[1765329214771,68.4712,137.37,137.35,0.05125793]
[1765329215176,163.8268,137.37,137.29,3.32]
[1765329216069,6.5521,137.35,137.29,3.32]
[1765329216270,0.05334537,137.34,137.32,0.05075171]
[1765329220275,105.92185146,137.42,137.32,3.37075171]
[1765329220567,5.50553871,137.41,137.32,3.32]
[1765329220773,6.5495,137.41,137.32,3.32]
[1765329221263,6.5498,137.4,137.35,0.05476504]
[1765329222066,6.5504,137.39,137.35,0.05476504]
[1765329222262,101.8871,137.4,137.35,0.05476504]
[1765329222466,6.552,137.36,137.29,3.32]
[1765329222666,101.9147,137.36,137.29,3.32]
[1765329223260,6.5531,137.33,137.29,3.32]
[1765329223460,6.5531,137.33,137.3,0.04798651]
[1765329223666,0.05219142,137.32,137.3,0.04798651]
[1765329225172,0.05219142,137.32,137.31,3.32]
[1765329239993,101.9024,137.38,137.31,3.32]
[1765329240675,6.5526,137.34,137.31,3.32]
[1765329240991,6.5526,137.34,137.31,3.37039006]
[1765329241285,6.552,137.36,137.31,3.37039006]
[1765329241490,101.9024,137.38,137.31,3.37039006]
[1765329242490,6.5521,137.35,137.31,3.37039006]
[1765329244688,101.8771,137.41,137.33,3.23]
[1765329244883,101.8853,137.4,137.36,3.27802289]
[1765329245884,114.9563,137.44,137.36,3.27802289]
[1765329247689,6.5503,137.39,137.36,3.27802289]
[1765329250785,6.5503,137.39,137.37,3.33]
[1765329253883,6.5493,137.41,137.39,3.33]
[1765329254084,353.84537395,137.46,137.4,5.91817685]
[1765329254283,353.84537395,137.46,137.41,3.33]
[1765329254489,353.84537395,137.46,137.42,3.3835151]
[1765329255488,6.5486,137.43,137.42,0.0535151]
[1765329257192,9.13587685,137.45,137.43,3.33]
[1765329257387,6.5477,137.45,137.43,3.33]
[1765329257892,6.5477,137.44,137.43,3.33]
[1765329260392,6.5477,137.44,137.42,3.3835151]
[1765329266096,6.5477,137.44,137.42,0.0535151]
[1765329266291,9.13547685,137.45,137.42,0.0535151]
[1765329267795,2.58817685,137.43,137.42,0.0535151]
[1765329268697,2.58817685,137.45,137.42,3.3835151]
[1765329273089,2.58817685,137.43,137.42,0.0535151]
[1765329274088,101.9076,137.37,137.3,3.35]
[1765329274297,2.58817685,137.32,137.3,3.35]
[1765329275092,2.64093231,137.32,137.3,3.40603241]
[1765329275398,2.64093231,137.32,137.3,0.05603241]
[1765329277304,2.64093231,137.32,137.3,3.40603241]
[1765329280907,0.05275546,137.32,137.3,3.40603241]
[1765329286004,2.64093231,137.32,137.3,3.40603241]
[1765329286711,0.05275546,137.32,137.3,3.40603241]
[1765329286905,2.64093231,137.32,137.3,3.40603241]
[1765329290210,0.05275546,137.32,137.3,3.40603241]
[1765329294114,0.05275546,137.32,137.3,0.05603241]
[1765329295016,0.05275546,137.32,137.3,3.40603241]
[1765329295211,0.05275546,137.32,137.3,0.05603241]
[1765329295423,0.05275546,137.32,137.3,3.40603241]
[1765329303921,0.05275546,137.32,137.3,0.05603241]
[1765329304220,0.05275546,137.32,137.3,3.19603241]
[1765329305719,0.05275546,137.32,137.3,0.05603241]
[1765329306016,4.05017551,137.31,137.22,3.14]
[1765329306429,10.60447551,137.31,137.23,3.14]
[1765329306921,0.05156881,137.28,137.27,3.1]
[1765329309122,0.05156881,137.28,137.26,0.04725679]
[1765329309519,0.05156881,137.28,137.26,3.14725679]
[1765329310831,0.05156881,137.28,137.26,0.04725679]
[1765329311132,6.60696881,137.28,137.26,0.04725679]
[1765329311320,0.05156881,137.28,137.22,3.1]
[1765329311522,4.05017551,137.28,137.22,3.1]
[1765329311823,101.9818,137.27,137.17,3.1]
[1765329312029,101.9818,137.27,137.18,3.1]
[1765329312416,0.04602391,137.24,137.21,0.05289084]
[1765329313023,6.5591,137.21,137.18,3.1]
[1765329313719,6.5591,137.21,137.14,6.5619]
[1765329313720,6.5591,137.21,137.15,3.1]
[1765329314027,0.04873937,137.19,137.18,3.1]
[1765329314225,101.9443,137.32,137.22,3.1]
[1765329314524,4.05017551,137.33,137.23,3.1]
[1765329315224,0.05301676,137.29,137.27,3.14646072]
[1765329317123,13.3021931,137.41,137.35,3.1]
[1765329317426,107.0162151,137.43,137.35,3.1]
[1765329317620,163.762,137.46,137.37,7.15017551]
[1765329317816,10.5746247,137.45,137.37,7.15017551]
[1765329318016,6.5478,137.44,137.37,7.15017551]
[1765329318227,0.05041928,137.42,137.39,0.05341242]
[1765329319016,6.59911928,137.42,137.34,9.6525]
[1765329319217,6.5487,137.42,137.34,9.6525]
[1765329320023,0.04631529,137.39,137.37,0.04627657]
[1765329320836,5.40217041,137.44,137.37,3.14627657]
[1765329321017,5.15306286,137.5,137.41,3.1]
[1765329321220,101.8575,137.44,137.37,3.1]
[1765329321415,101.8575,137.44,137.32,203.8766]
[1765329321616,101.8575,137.44,137.34,3.1]
[1765329322024,0.05258039,137.4,137.38,0.05558945]
[1765329323839,101.84,137.46,137.38,3.15558945]
[1765329324131,101.8333,137.47,137.38,3.15558945]
[1765329324319,101.8333,137.47,137.38,3.1]
[1765329324934,0.0543734,137.44,137.41,0.04680878]
[1765329326726,6.6024734,137.44,137.41,0.04680878]
[1765329327327,108.4103,137.43,137.41,0.04680878]
[1765329329037,0.0543734,137.44,137.41,0.04680878]
[1765329330224,6.5485,137.43,137.41,0.04680878]
[1765329330721,101.917,137.36,137.3,3.08]
[1765329331224,6.5529,137.34,137.3,3.08]
[1765329331630,0.05221735,137.33,137.31,0.05227098]
[1765329332026,101.8401,137.46,137.33,3.08]
[1765329332233,101.8706,137.42,137.33,3.08]
[1765329332832,101.8662,137.43,137.33,3.08]
[1765329333132,0.04825581,137.39,137.37,0.05165309]
[1765329334437,0.04825581,137.39,137.37,3.13165309]
[1765329335534,101.8398,137.46,137.38,3.08]
[1765329335928,101.8359,137.47,137.38,3.08]
[1765329336534,101.8721,137.42,137.32,3.08]
[1765329336736,101.8721,137.42,137.36,3.12701148]
[1765329337427,6.5498,137.4,137.36,3.12701148]
[1765329338740,101.853,137.45,137.36,3.12701148]
[1765329338937,101.853,137.45,137.4,3.08]
[1765329339644,6.5483,137.43,137.4,3.08]
[1765329344847,6.5489,137.42,137.4,3.08]
[1765329345150,101.8702,137.42,137.39,0.05586899]
[1765329345354,6.5496,137.4,137.39,0.05586899]
[1765329349150,6.5496,137.4,137.39,3.13586899]
[1765329352646,114.9481,137.45,137.39,3.13586899]
[1765329352647,101.853,137.45,137.39,3.13586899]
[1765329353249,6.5486,137.43,137.39,3.13586899]
[1765329353751,101.853,137.45,137.39,3.13586899]
[1765329355455,6.5488,137.42,137.39,3.13586899]
[1765329361551,6.5492,137.41,137.39,3.13586899]
[1765329361760,101.8856,137.4,137.31,62.0]
[1765329362152,101.8777,137.41,137.31,68.5539]
[1765329362549,101.8716,137.42,137.31,62.0]
[1765329362752,0.05539578,137.38,137.35,0.05001017]
[1765329363650,0.05539578,137.38,137.36,3.22]
[1765329371869,0.05539578,137.38,137.35,0.05001017]
[1765329372165,0.05539578,137.38,137.35,3.38001017]
[1765329374666,2.58994455,137.37,137.35,3.38001017]
[1765329381170,101.9305,137.34,137.29,3.33]
[1765329381353,2.58994455,137.32,137.29,3.33]
[1765329381758,2.58994455,137.3,137.24,61.86]
[1765329381972,2.58994455,137.3,137.25,3.33]
[1765329382265,0.05458878,137.29,137.27,3.33]
[1765329390072,6.5524,137.35,137.27,3.33]
[1765329390278,2.58994455,137.36,137.28,3.26]
[1765329390579,9.14154455,137.36,137.28,3.26]
[1765329391163,0.04881789,137.33,137.32,3.26]
[1765329393383,101.98691789,137.33,137.27,3.26]
[1765329393573,2.58994455,137.31,137.27,3.26]
[1765329394383,2.58994455,137.31,137.28,3.31175437]
[1765329394582,6.5547,137.3,137.28,3.31175437]
[1765329396983,2.58994455,137.29,137.28,0.05175437]
[1765329402886,6.5547,137.3,137.28,3.31175437]
[1765329409186,6.5547,137.3,137.28,0.05175437]
[1765329410785,2.58994455,137.29,137.28,0.05175437]
[1765329412887,6.5573,137.24,137.22,3.26]
[1765329414088,6.61053214,137.24,137.22,3.31098466]
[1765329415188,0.05323214,137.24,137.22,3.31098466]
[1765329416683,6.5542,137.31,137.23,3.26]
[1765329416988,4.05136949,137.33,137.23,3.26]
[1765329417581,0.05015975,137.29,137.27,3.3073155]
[1765329417881,0.05015975,137.29,137.27,0.0473155]
[1765329420483,6.60515975,137.29,137.27,0.0473155]
[1765329420679,0.05015975,137.29,137.23,3.07]
[1765329421488,4.05136949,137.27,137.17,3.07]
[1765329421685,0.04901659,137.23,137.22,3.07]
[1765329421890,0.05588877,137.24,137.22,3.07]
[1765329427597,2.42,137.36,137.28,3.07]
[1765329428100,6.47136949,137.39,137.28,3.07]
[1765329428607,0.05050902,137.35,137.33,7.12136949]
[1765329428795,0.05050902,137.35,137.34,3.07]
[1765329428796,0.05109621,137.35,137.34,3.07]
[1765329430803,258.86473756,137.42,137.34,3.07]
[1765329430804,2.42,137.42,137.34,3.07]
[1765329431000,2.47,137.49,137.41,3.07]
[1765329432106,0.04935331,137.46,137.44,0.0467237]
[1765329433706,2.51935331,137.46,137.44,0.0467237]
[1765329436601,0.04935331,137.46,137.44,3.0967237]
[1765329437007,0.04935331,137.46,137.44,0.0467237]
[1765329439012,2.50935331,137.46,137.44,0.0467237]
[1765329441208,2.50935331,137.46,137.39,3.05]
[1765329442217,2.50935331,137.46,137.41,0.0461224]
[1765329443617,2.50935331,137.46,137.41,3.0961224]
[1765329444514,0.04935331,137.46,137.41,3.0961224]
[1765329445401,2.50935331,137.46,137.42,3.05]
[1765329446306,0.04935331,137.46,137.42,3.05]
[1765329447714,2.50935331,137.46,137.42,3.05]
[1765329448211,0.04935331,137.46,137.42,3.05]
[1765329451221,2.50935331,137.46,137.42,3.05]
[1765329452225,0.04935331,137.46,137.42,3.05]
[1765329455026,0.04935331,137.46,137.43,3.04]
[1765329457022,0.04935331,137.46,137.43,9.5882]
[1765329457326,2.46,137.51,137.44,3.04]
[1765329458435,0.0458949,137.49,137.46,3.09266217]
[1765329459639,0.0458949,137.49,137.47,3.04]
[1765329460532,0.0458949,137.49,137.47,9.5862]
[1765329460739,9.0029,137.55,137.48,3.04]
[1765329461742,2.46,137.54,137.5,3.08702413]
[1765329462248,2.46,137.58,137.5,3.08702413]
[1765329463549,2.46,137.58,137.52,9.5839]
[1765329463745,2.46,137.58,137.54,0.05170596]
[1765329464244,2.46,137.58,137.54,3.09170596]
[1765329465143,4.04045451,137.63,137.55,3.04]
[1765329465333,2.46,137.62,137.58,3.08694027]
[1765329466034,6.7286178,137.73,137.58,3.08694027]
[1765329466345,8.92810974,137.75,137.64,3.09512906]
[1765329466346,2.46,137.72,137.64,3.09512906]
[1765329466649,6.50045451,137.68,137.67,0.05108395]
[1765329467335,2.46,137.68,137.67,0.05108395]
[1765329467738,2.46,137.74,137.67,0.05108395]
[1765329468246,8.9941,137.73,137.67,0.05108395]
[1765329468843,2.46,137.79,137.75,3.04]
[1765329469041,2.46,137.79,137.76,0.05360128]
[1765329472244,28.5786178,137.88,137.76,0.05360128]
[1765329472439,2.46,137.86,137.81,0.04652921]
[1765329472740,2.46,137.86,137.82,0.0485866]
[1765329474244,2.46,137.9,137.82,3.0885866]
[1765329475537,2.46,137.94,137.87,3.04]
[1765329475740,2.46,137.94,137.89,0.0554636]
[1765329477046,2.46,137.94,137.89,3.0954636]
[1765329477448,2.46,137.96,137.89,3.0954636]
[1765329479841,252.16239251,137.97,137.89,3.0954636]
[1765329481255,6.5212,138.0,137.9,3.01]
[1765329481551,5.91372242,138.01,137.94,3.06333795]
[1765329482449,12.43482242,138.01,137.94,3.06333795]
[1765329482649,3.47372242,138.01,137.94,3.06333795]
[1765329482846,103.8109,138.1,137.96,3.01]
[1765329483046,103.8109,138.1,137.94,109.39704796]
[1765329483047,101.3834,138.08,138.01,3.0608579]
[1765329483253,8.9565,138.1,138.01,3.0608579]
[1765329483457,6.5165,138.1,138.04,3.06473377]
[1765329483759,101.3829,138.08,138.04,3.06473377]
[1765329483956,3.1,138.08,138.04,3.06473377]
[1765329484249,101.3719,138.1,138.04,3.06473377]
[1765329485047,6.5178,138.08,138.04,3.06473377]
[1765329485360,101.3974,138.06,138.04,3.06473377]
[1765329485550,101.3974,138.06,138.04,0.05473377]
[1765329485551,107.9162,138.06,138.04,0.05473377]
[1765329486646,6.5188,138.06,138.04,0.05473377]
[1765329486844,107.9159,138.06,138.04,0.05473377]
[1765329488154,107.9159,138.06,137.98,3.01]
[1765329488155,6.5194,138.04,137.98,3.01]
[1765329488656,6.5201,138.03,137.98,3.01]
[1765329488858,9.6201,138.03,137.98,3.01]
[1765329489056,3.1,138.02,137.98,3.01]
[1765329489243,0.05571497,138.01,137.99,0.04986606]
[1765329489856,3.15571497,138.01,137.99,0.04986606]
[1765329490458,111.11061497,138.01,137.99,0.04986606]
[1765329490647,111.11061497,138.01,137.95,3.01]
[1765329490648,104.544,138.0,137.95,3.01]
[1765329490854,3.1,137.99,137.91,3.01]
[1765329491660,0.0513804,137.96,137.94,0.04645941]
[1765329493160,0.0513804,137.96,137.94,3.05645941]
[1765329495858,0.0513804,137.96,137.94,0.04645941]
[1765329496054,9.8847804,137.96,137.94,0.04645941]
[1765329496265,6.5747804,137.96,137.94,0.04645941]
[1765329497366,9.8847804,137.96,137.94,0.04645941]
[1765329497553,6.5747804,137.96,137.94,0.04645941]
[1765329497757,9.8847804,137.96,137.94,0.04645941]
[1765329498761,0.0513804,137.96,137.94,3.33645941]
[1765329501161,64.93,138.04,137.94,3.33645941]
[1765329501474,3.31,138.07,137.95,3.29]
[1765329501676,3.31,138.1,137.96,9.71251001]
[1765329501969,3.31,138.1,137.97,3.29]
[1765329502171,0.05434066,138.05,138.03,3.29]
[1765329502371,0.04603043,138.05,138.03,3.34089858]
[1765329505984,9.8266,138.1,138.03,3.34089858]
[1765329506392,3.31,138.08,138.03,3.34089858]
[1765329506576,3.31,138.08,138.03,3.29]
[1765329507188,3.31,138.12,138.04,0.0504596]
[1765329507489,3.31,138.12,138.07,0.05177014]
[1765329507683,6.5166,138.1,138.07,0.05177014]
[1765329507879,3.31,138.09,138.07,0.05177014]
[1765329508182,3.31,138.12,138.07,3.34177014]
[1765329508388,3.31,138.15,138.07,3.34177014]
[1765329508578,3.31,138.15,138.1,0.0468475]
[1765329508884,3.31,138.13,138.1,0.0468475]
[1765329509987,3.2,138.12,138.1,0.0468475]
[1765329510486,9.7158,138.12,138.1,0.0468475]
[1765329510676,3.2,138.11,138.04,3.21]
[1765329511579,3.25530441,138.09,138.06,0.05041877]
[1765329513383,0.05530441,138.09,138.06,3.26041877]
[1765329514474,0.05530441,138.09,138.06,9.77851877]
[1765329514675,0.05530441,138.09,138.07,3.21]
[1765329514882,3.2,138.14,138.07,3.21]
[1765329515878,3.2,138.14,138.09,0.05251522]
[1765329516386,3.2,138.12,138.09,0.05251522]
[1765329517289,9.7156,138.12,138.09,0.05251522]
[1765329518993,3.2,138.11,138.09,0.05251522]
[1765329519497,8.71032514,138.1,138.09,0.05251522]
[1765329521283,5.51032514,138.1,138.09,3.26251522]
[1765329521490,3.2,138.15,138.09,3.26251522]
[1765329521696,8.71859078,138.14,138.09,3.26251522]
[1765329521894,5.51859078,138.13,138.09,3.26251522]
[1765329522196,5.51859078,138.12,138.09,3.26251522]
[1765329522389,3.2,138.14,138.09,3.26251522]
[1765329522695,3.2,138.14,138.09,9.77931522]
[1765329522898,6.514,138.16,138.1,3.21]
[1765329523089,8.54911788,138.15,138.1,3.21]
[1765329523292,3.2,138.18,138.11,3.21]
[1765329523492,5.349705,138.17,138.14,3.21]
[1765329523689,3.2,138.18,138.14,3.21]
[1765329523889,5.34958732,138.17,138.14,3.21]
[1765329524087,3.2,138.18,138.14,3.21]
[1765329524300,5.35194525,138.17,138.14,3.21]
[1765329524598,3.2,138.18,138.14,3.21]
[1765329524798,5.34973057,138.17,138.14,3.21]
[1765329525100,3.2,138.21,138.15,3.21]
[1765329525395,5.34907832,138.2,138.17,3.2642918]
[1765329525594,3.2,138.21,138.17,3.2642918]
[1765329525795,8.54648248,138.2,138.17,0.0542918]
[1765329525996,3.2,138.2,138.17,0.0542918]
[1765329532492,3.2,138.23,138.17,3.2642918]
[1765329533301,3.2,138.23,138.17,0.0542918]
[1765329533302,104.4752,138.23,138.17,0.0542918]
[1765329533501,3.2,138.22,138.17,0.0542918]
[1765329533700,3.2,138.2,138.17,0.0542918]
[1765329534305,3.2,138.18,138.17,0.0542918]
[1765329537412,3.2,138.17,138.1,3.21]
[1765329538210,3.2,138.16,138.11,3.21]
[1765329538397,0.04840225,138.15,138.12,3.26409626]
[1765329538708,3.24840225,138.15,138.12,0.05409626]
[1765329539711,3.24840225,138.15,138.12,3.24409626]
[1765329540204,3.24840225,138.15,138.12,0.05409626]
[1765329540504,0.04840225,138.15,138.12,3.24409626]
[1765329541509,3.12840225,138.15,138.12,3.24409626]
[1765329541905,3.12840225,138.15,138.12,0.05409626]
[1765329542406,3.12840225,138.15,138.12,3.24409626]
[1765329543512,3.12840225,138.15,138.12,0.05409626]
[1765329543715,9.64260225,138.15,138.12,0.05409626]
[1765329543913,3.08,138.14,138.12,0.05409626]
[1765329545115,3.08,138.13,138.12,0.05409626]
[1765329545611,3.08,138.12,138.06,6.5179]
[1765329545819,3.08,138.12,138.05,3.19]
[1765329546506,3.12934816,138.1,138.07,0.0480557]
[1765329548213,3.12934816,138.1,138.07,3.2380557]
[1765329548916,3.08,138.16,138.08,3.19]
[1765329549406,3.08,138.16,138.12,3.19]
[1765329550005,0.04982024,138.15,138.13,3.2447305]
[1765329550207,3.08,138.19,138.13,3.2447305]
[1765329551113,3.08,138.19,138.14,9.7045]
[1765329551314,3.08,138.19,138.14,3.19]
[1765329552615,363.30360546,138.24,138.16,3.19]
[1765329552616,254.71779974,138.24,138.16,3.19]
[1765329552815,3.08,138.23,138.19,0.05548178]
[1765329553423,3.08,138.31,138.24,3.19]
[1765329553611,3.08,138.31,138.26,0.05197382]
[1765329553807,3.08,138.27,138.18,6.5123]
[1765329554212,3.08,138.27,138.19,101.3003]
[1765329554409,3.08,138.27,138.23,6.5101]
[1765329554919,0.0556262,138.26,138.24,6.55632223]
[1765329555314,0.0556262,138.26,138.24,9.74632223]
[1765329555522,0.0556262,138.26,138.25,3.19]
[1765329556516,3.42854486,138.37,138.3,3.19]
[1765329556718,3.42854486,138.37,138.31,101.2111]
[1765329556924,3.42854486,138.37,138.31,104.4011]